Cogmind - Beta 15 @@@ ROGUE MODE // 2025.09.03 @ 18:36:02 Player: delto Result: Destroyed by B-86 Titan with Matter Neutralizer Performance ------------- Evolutions (6) 3000 Regions Visited (9) 1800 Robots Destroyed (5) 25 Value Destroyed (184) 184 Prototype IDs (25) 500 Alien Tech Used (0) 0 Bonus (342) 342 TOTAL SCORE: 5851 Bonus ------- Follower Combat Kills 42 Aligned with FarCom 300 Cogmind --------- Core Integrity 0/1150 Matter 300/300 Energy 100/100 System Corruption 10% Temperature Cool (9) Movement Core (50) Location -4/Factory Parts ------- > --- POWER (3) -------- (None) > --- PROPULSION (4) --- (None) > --- UTILITY (9) ------ (None) > --- WEAPON (3) ------- (None) > --- INVENTORY (5) ---- System Shield Improved Component Analysis Suite Peak State ------------ > --- POWER ------------ Angular Momentum Engine Light Antimatter Reactor > --- PROPULSION ------- Gravmag Array Gravmag Array > --- UTILITY ---------- Improved Heat Sink Compact Battery Machine Analyzer Enhanced Optical Array Improved Target Analyzer Improved Transmission Jammer Improved Thermal Shield EM Shield Improved Component Analysis Suite > --- WEAPON ----------- Tesla Rifle Improved Remote Datajack > --- INVENTORY -------- Neutrino Core Gyrokinetic Inverter System Shield Improved Component Analysis Suite [Rating: 88] Favorites ----------- Power Light Ion Engine Engine Light Ion Engine Power Core Micro Nuclear Core Reactor Light Antimatter Reactor Propulsion Light Treads Treads Light Treads Wheel Wheel Hover Unit Gravmag Array Flight Unit Flight Unit Utility Compact Battery Device EM Shield Storage Compact Battery Processor Machine Analyzer Hackware Advanced System Shield Weapon Medium Laser Energy Gun Medium Laser Ballistic Cannon Assault Cannon Launcher Heavy Shock Bomb Launcher Special Weapon Field Lobotomy Kit Slashing Weapon Mining Claw Build | -11 -10 -10 -10 -9 -8 -7 -6 -5 -4 ------- Run | Yrd Mat Min Exi Min Mat Fac Fac Fac Fac Slots Evolved 12 | . . . . . 4 2 2 2 2 Power 2 | . . . . . . 1 . . 1 Propulsion 2 | . . . . . 1 1 . . . Utility 7 | . . . . . 2 . 2 2 1 Weapon 1 | . . . . . 1 . . . . Parts Attached 64 | 8 . . 4 1 15 2 5 18 11 Power 8 | 1 . . . . . 1 1 3 2 Engine 5 | 1 . . . . . 1 . 3 . Core 2 | . . . . . . . 1 . 1 Reactor 1 | . . . . . . . . . 1 Propulsion 13 | 3 . . . . 5 1 . 2 2 Treads 2 | 2 . . . . . . . . . Leg . | . . . . . . . . . . Wheel 1 | 1 . . . . . . . . . Hover 4 | . . . . . . . . 2 2 Flight 6 | . . . . . 5 1 . . . Utility 30 | 2 . . 2 1 7 . 4 9 5 Device 19 | 1 . . . 1 5 . 2 6 4 Storage 6 | 1 . . 2 . 1 . . 2 . Processor 4 | . . . . . 1 . 2 . 1 Hackware 1 | . . . . . . . . 1 . Protection . | . . . . . . . . . . Artifact . | . . . . . . . . . . Weapon 13 | 2 . . 2 . 3 . . 4 2 Energy Gun 4 | 2 . . . . 1 . . . 1 Energy Cannon . | . . . . . . . . . . Ballistic Gun . | . . . . . . . . . . Ballistic Cannon 1 | . . . . . 1 . . . . Launcher 4 | . . . . . . . . 4 . Special Weapon 3 | . . . 1 . 1 . . . 1 Impact Weapon . | . . . . . . . . . . Slashing Weapon 1 | . . . 1 . . . . . . Piercing Weapon . | . . . . . . . . . . Special Melee Weapon . | . . . . . . . . . . Unidentified Prototypes 1 | . . . 1 . . . . . . Parts Lost 25 | . . . . . 2 . . 7 16 Power 6 | . . . . . . . . 2 4 Propulsion 5 | . . . . . 2 . . . 3 Utility 12 | . . . . . . . . 4 8 Weapon 2 | . . . . . . . . 1 1 Highest Loss Streak 7 | . . . . . 2 . . 4 7 To Critical Strikes . | . . . . . . . . . . Average Backups 5 | 2 5 8 8 6 2 4 3 4 2 Power . | . 1 1 1 1 1 . . . . Propulsion . | . 1 1 1 . 1 1 . . . Utility 2 | . 2 4 4 2 . 2 2 4 1 Weapon . | . 1 2 2 2 . . . . . Tool/Special . | . . . . . . . . . . Unused Backups 17 | . . . 1 5 4 2 1 . 4 Power 1 | . . . . . 1 . . . . Propulsion 2 | . . . . . . 2 . . . Utility 9 | . . . 1 5 1 . . . 2 Weapon 5 | . . . . . 2 . 1 . 2 Tool/Special . | . . . . . . . . . . Average Slot Usage (%) 82 | . 100 100 99 89 82 83 83 76 65 Engine 10 | . 14 14 14 14 9 15 10 4 7 Treads 12 | . 28 28 28 28 8 . . . . Hover 4 | . . . . . . . . 10 9 Flight 3 | . . . . . 13 29 26 1 . Device 19 | . 14 14 13 14 21 23 22 24 24 Storage 7 | . 14 14 14 3 3 . . 1 7 Processor 6 | . . . . . 8 7 16 15 11 Energy Gun 8 | . 28 28 23 . 4 7 4 . 1 Special Weapon 3 | . . . 2 14 8 . . . . Slashing Weapon 2 | . . . 2 14 1 . . . . Peak Build Rating 88 | 7 7 7 17 22 29 23 34 79 88 Average Rating 36 | 5 7 7 8 20 21 22 32 67 70 On Entrance 19 | . 7 7 7 17 22 19 23 34 59 Naked Turns 36 | . . . . . . . . . 36 Heaviest Build 45 | 13 13 13 24 24 30 13 15 45 38 Greatest Support 40 | 40 40 40 40 40 40 15 15 40 40 Greatest Overweight (x) 4 | . . . . . 4 . . 1 1 Average Overweight (x) . | . . . . . . . . . . Largest Inventory Capacity 10 | 8 8 8 10 10 10 5 5 5 5 Average Capacity 6 | 7 8 8 9 6 7 5 5 5 5 Most Carried 10 | 5 8 8 10 10 5 5 5 5 5 Average Carried 5 | 2 6 8 8 6 2 4 3 4 2 Final Capacity 10 | 8 8 8 10 5 5 5 5 5 5 Final Carried 10 | 3 8 8 10 5 5 4 4 1 2 Class Distribution -------------------- 36% | Mutant 18% | Infiltrator-Scout 14% | Scavenger-Scout 12% | Scout 8% | Skirmisher 7% | Scrapper Dominant Class ---------------- Mutant | -10/Materials Mutant | -10/Mines Mutant | -10/Exiles Scrapper | -9/Mines Scavenger-Scout | -8/Materials Scavenger-Scout | -7/Factory Scavenger-Scout | -6/Factory Scout | -5/Factory Infiltrator-Scout | -4/Factory Resources | -11 -10 -10 -10 -9 -8 -7 -6 -5 -4 ----------- Run | Yrd Mat Min Exi Min Mat Fac Fac Fac Fac Matter Collected 868 | 300 . . 10 40 220 . . 35 263 Remotely 29 | . . . . . . . . 29 . Salvage Created 175 | 27 . . . . 22 . . . 126 Parts 15 | 1 . . . . 5 . . . 9 Haulers Intercepted . | . . . . . . . . . . Recyclers Shooed . | . . . . . . . . . . Parts Field Recycled . | . . . . . . . . . . Retrieved Matter . | . . . . . . . . . . Parts Self-Destructed . | . . . . . . . . . . Prevented . | . . . . . . . . . . Kills | -11 -10 -10 -10 -9 -8 -7 -6 -5 -4 ------- Run | Yrd Mat Min Exi Min Mat Fac Fac Fac Fac Combat Hostiles Destroyed 4 | . . . . . 2 . . . 2 Melee 1 | . . . . . . . . . 1 Guns 1 | . . . . . . . . . 1 Cannons 2 | . . . . . 2 . . . . Classes Destroyed 4 | 1 . . . . 1 . . . 2 Tunneler 1 | 1 . . . . . . . . . Swarmer 2 | . . . . . 2 . . . . Grunt 1 | . . . . . . . . . 1 Programmer 1 | . . . . . . . . . 1 Best Kill Streak 2 | 1 . . . . 2 . . . 1 Combat Bots Only 2 | . . . . . 2 . . . 1 Max Kills in Single Turn 1 | 1 . . . . 1 . . . 1 Gunslinging . | . . . . . . . . . . Exploded . | . . . . . . . . . . Melee 1 | . . . . . . . . . 1 Uniques/NPCs Destroyed . | . . . . . . . . . . Combat | -11 -10 -10 -10 -9 -8 -7 -6 -5 -4 -------- Run | Yrd Mat Min Exi Min Mat Fac Fac Fac Fac Hostile Shots Fired 292 | . . . . . 30 . . 70 192 Missed 122 | . . . . . 13 . . 37 72 Hits 170 | . . . . . 17 . . 33 120 Melee 23 | . . . . . 2 . . 21 . Projectile 147 | . . . . . 15 . . 12 120 AOE 2 | . . . . . . . . 2 . Critical Strikes 14 | . . . . . 1 . . 8 5 Part Disruptions 1 | . . . . . . . . . 1 Damage Taken 3307 | . . . . . 276 . . 1017 2014 Core 1424 | . . . . . 73 . . 167 1184 Absorbed by Shields . | . . . . . . . . . . Ignored by Resistances 178 | . . . . . . . . 7 171 Core Remaining (%) 94 | 100 . . . 100 86 100 100 83 . Volleys Fired 22 | 1 . . . . 8 . . 2 11 Largest 1 | 1 . . . . 1 . . 1 1 Hottest 65 | 50 . . . . 37 . . 46 65 Shots Fired 22 | 1 . . . . 8 . . 2 11 Gun 11 | 1 . . . . . . . . 10 Cannon 3 | . . . . . 3 . . . . Launcher 2 | . . . . . . . . 2 . Special 6 | . . . . . 5 . . . 1 Kinetic 3 | . . . . . 3 . . . . Thermal 1 | 1 . . . . . . . . . Explosive . | . . . . . . . . . . Electromagnetic 12 | . . . . . . . . 2 10 Robot Hit Streak 3 | 1 . . . . 3 . . . 3 Robot Miss Streak 4 | . . . . . 1 . . 2 4 Penetration Max . | . . . . . . . . . . Secondary Targets . | . . . . . . . . . . Shots Hit Robots 13 | 1 . . . . 6 . . . 6 Core Hits 11 | 1 . . . . 2 . . 1 7 Critical Kills . | . . . . . . . . . . Critical Parts Destroyed . | . . . . . . . . . . Critical Strikes . | . . . . . . . . . . Melee Attacks 1 | . . . . . 1 . . . . Impact . | . . . . . . . . . . Slashing 1 | . . . . . 1 . . . . Piercing . | . . . . . . . . . . Sneak Attacks . | . . . . . . . . . . Combat Hostiles . | . . . . . . . . . . Follow-up Attacks . | . . . . . . . . . . Damage Inflicted 379 | 13 . . . . 46 . . 81 239 Guns 151 | 13 . . . . . . . . 138 Cannons 46 | . . . . . 46 . . . . Explosions 81 | . . . . . . . . 81 . Melee . | . . . . . . . . . . Ramming 101 | . . . . . . . . . 101 Kinetic 46 | . . . . . 46 . . . . Thermal 13 | 13 . . . . . . . . . Explosive . | . . . . . . . . . . Electromagnetic 219 | . . . . . . . . 81 138 Impact . | . . . . . . . . . . Slashing . | . . . . . . . . . . Piercing . | . . . . . . . . . . Highest Corruption 10 | . . . . . . . . . 10 Average Corruption 4 | . . . . . . . . . 4 Corruption Purged . | . . . . . . . . . . Corruption Blocked . | . . . . . . . . . . Effects 10 | . . . . . . . . . 10 Message Errors 2 | . . . . . . . . . 2 Matter Fused 2 | . . . . . . . . . 2 Energy Discharges 1 | . . . . . . . . . 1 Data Loss (minor) 2 | . . . . . . . . . 2 Data Loss (major) 2 | . . . . . . . . . 2 Alerts 1 | . . . . . . . . . 1 Overload Shots . | . . . . . . . . . . Overflow Damage 3 | . . . . . . . . 3 . Projectiles . | . . . . . . . . . . Explosions 3 | . . . . . . . . 3 . Melee . | . . . . . . . . . . Knockbacks . | . . . . . . . . . . Impact . | . . . . . . . . . . Kinetic . | . . . . . . . . . . Secondary . | . . . . . . . . . . Self-Inflicted Damage 70 | . . . . . . . . 21 49 Shots 1 | . . . . . . . . 1 . Rammed 11 | . . . . . . . . . 11 Targets Rammed 11 | . . . . . . . . . 11 Kicked . | . . . . . . . . . . Crushed . | . . . . . . . . . . Highest Temperature 10 | 10 . . . . . . . 2 4 Average Temperature 4 | 7 . . . . . . . 1 3 Received Heat Transfer 364 | . . . . . 90 . . 45 229 Siege Activations . | . . . . . . . . . . Martial Activations . | . . . . . . . . . . Shielding Activations . | . . . . . . . . . . Robots Disrupted . | . . . . . . . . . . Combat Hostiles . | . . . . . . . . . . Robots Corrupted . | . . . . . . . . . . Combat Hostiles . | . . . . . . . . . . Parts Fried . | . . . . . . . . . . Impact Corruptions . | . . . . . . . . . . Robots Melted . | . . . . . . . . . . Combat Hostiles . | . . . . . . . . . . Parts Melted . | . . . . . . . . . . Heat Transferred 37 | 37 . . . . . . . . . Parts Sabotaged . | . . . . . . . . . . Parts Stolen . | . . . . . . . . . . Parts Stripped . | . . . . . . . . . . Power Chain Reactions . | . . . . . . . . . . Alert | -11 -10 -10 -10 -9 -8 -7 -6 -5 -4 ------- Run | Yrd Mat Min Exi Min Mat Fac Fac Fac Fac Maximum Alert Level . | . . . . . . . . . . Low Security (%) 100 | 100 100 100 . 100 100 100 100 100 100 Level 1 . | . . . . . . . . . . Level 2 . | . . . . . . . . . . Level 3 . | . . . . . . . . . . Level 4 . | . . . . . . . . . . Level 5 . | . . . . . . . . . . High Security . | . . . . . . . . . . Max Security . | . . . . . . . . . . Peak Influence 112 | 5 . . . . 112 46 7 15 90 Initial 46 | . . . . . . 46 7 . . Average 5 | . . . . . 17 31 2 . 3 Influence Increases 515 | 5 . . . . 296 . . 29 185 Destroy 0b10 Robot/C 120 | . . . . . 80 . . . 40 Destroy 0b10 Robot/NC 5 | 5 . . . . . . . . . Destroy Leader 10 | . . . . . . . . . 10 Allied During Kill 2 | . . . . . 2 . . . . Successful Hack 18 | . . . . . 4 . . 14 . Disable Machine 30 | . . . . . 15 . . . 15 Partial Spotted 30 | . . . . . 30 . . . . Lose Combat Pursuer 300 | . . . . . 165 . . 15 120 Influence Decreases 431 | 5 . . . . 192 88 16 29 101 Entered New Map 67 | . . . . . . 58 9 . . Time Decay 247 | 5 . . . . 135 30 7 5 65 Lost Part 62 | . . . . . 2 . . 24 36 Lost Ally 55 | . . . . . 55 . . . . Squads Dispatched 6 | . . . . . 1 . . 2 3 Investigation . | . . . . . . . . . . Extermination 2 | . . . . . . . . . 2 Reinforcement 4 | . . . . . 1 . . 2 1 Assault . | . . . . . . . . . . Garrison . | . . . . . . . . . . Intercept . | . . . . . . . . . . Searches Triggered . | . . . . . . . . . . Construction Impeded . | . . . . . . . . . . Haulers Reinforced . | . . . . . . . . . . Active Scanning Responses . | . . . . . . . . . . Cargo Convoy Interrupts . | . . . . . . . . . . Stealth | -11 -10 -10 -10 -9 -8 -7 -6 -5 -4 --------- Run | Yrd Mat Min Exi Min Mat Fac Fac Fac Fac Distress Signals 4 | . . . . . 1 . . . 3 Communications Jammed 10 | . . . . . . . . . 10 Distress Signals 10 | . . . . . . . . . 10 Times Spotted 59 | . . . . . 25 . . 8 26 Peak Tracking Total 14 | . . . . . 10 . . 3 14 Tactical Retreats 11 | . . . . . 5 . . 3 3 Traps | -11 -10 -10 -10 -9 -8 -7 -6 -5 -4 ------- Run | Yrd Mat Min Exi Min Mat Fac Fac Fac Fac Traps Triggered 1 | . . . . . . . . . 1 Indirectly . | . . . . . . . . . . Trap Hack Attempts . | . . . . . . . . . . Triggered . | . . . . . . . . . . Disarmed . | . . . . . . . . . . Reprogrammed . | . . . . . . . . . . Reused . | . . . . . . . . . . Traps Extracted . | . . . . . . . . . . Installed . | . . . . . . . . . . Triggered . | . . . . . . . . . . Machines | -11 -10 -10 -10 -9 -8 -7 -6 -5 -4 ---------- Run | Yrd Mat Min Exi Min Mat Fac Fac Fac Fac Machines Disabled 2 | . . . . . 1 . . . 1 Max in Single Turn 1 | . . . . . 1 . . . 1 Machines Repaired . | . . . . . . . . . . Machines Dismantled . | . . . . . . . . . . Machines Sabotaged . | . . . . . . . . . . Overloaded Fab Kills . | . . . . . . . . . . Hacking | -11 -10 -10 -10 -9 -8 -7 -6 -5 -4 --------- Run | Yrd Mat Min Exi Min Mat Fac Fac Fac Fac Machines Accessed 7 | . 1 . 1 . 3 . . 1 1 Terminals 6 | . 1 . . . 3 . . 1 1 Fabricators . | . . . . . . . . . . Repair Stations . | . . . . . . . . . . Recycling Units . | . . . . . . . . . . Scanalyzers . | . . . . . . . . . . Garrison Access . | . . . . . . . . . . Total Hacks 11 | . 1 . 1 . 5 . . 2 2 Successful 6 | . . . 1 . 3 . . 1 1 Failed 5 | . 1 . . . 2 . . 1 1 Catastrophic . | . . . . . . . . . . Database Lockouts . | . . . . . . . . . . Manual 9 | . 1 . 2 . 4 . . 1 1 Terminals 10 | . 1 . . . 5 . . 2 2 Fabricators . | . . . . . . . . . . Repair Stations . | . . . . . . . . . . Recycling Units . | . . . . . . . . . . Scanalyzers . | . . . . . . . . . . Garrison Access . | . . . . . . . . . . Terminal Hacks 3 | . . . 1 . . . . 1 1 Alert Level 1 | . . . . . . . . . 1 Zone Layout 1 | . . . . . . . . 1 . Proto ID Catalog 1 | . . . 1 . . . . . . Fabricator Hacks . | . . . . . . . . . . Repair Station Hacks . | . . . . . . . . . . Recycling Unit Hacks . | . . . . . . . . . . Scanalyzer . | . . . . . . . . . . Garrison Access Hacks . | . . . . . . . . . . Unauthorized Hacks 3 | . . . . . 3 . . . . Terminals 3 | . . . . . 3 . . . . Botnet 3 | . . . . . 3 . . . . Fabricators . | . . . . . . . . . . Repair Stations . | . . . . . . . . . . Recycling Units . | . . . . . . . . . . Scanalyzers . | . . . . . . . . . . Garrison Access . | . . . . . . . . . . Data Cores Recovered . | . . . . . . . . . . Used . | . . . . . . . . . . Hacking Detections 3 | . . . . . 1 . . 1 1 Full Trace Events . | . . . . . . . . . . Feedback Events . | . . . . . . . . . . Feedback Blocked . | . . . . . . . . . . Robot Schematics Acquired . | . . . . . . . . . . Robots Built . | . . . . . . . . . . Authchips . | . . . . . . . . . . Time . | . . . . . . . . . . Total Robot Build Rating . | . . . . . . . . . . Part Schematics Acquired . | . . . . . . . . . . Parts Built . | . . . . . . . . . . Authchips . | . . . . . . . . . . Time . | . . . . . . . . . . Total Part Build Rating . | . . . . . . . . . . Parts Repaired . | . . . . . . . . . . Time . | . . . . . . . . . . Parts Recycled . | . . . . . . . . . . Recycled Matter . | . . . . . . . . . . Retrieved Matter . | . . . . . . . . . . Retrieved Components . | . . . . . . . . . . Parts Scanalyzed . | . . . . . . . . . . Part Schematics Acquired . | . . . . . . . . . . Parts Damaged . | . . . . . . . . . . Bothacking | -11 -10 -10 -10 -9 -8 -7 -6 -5 -4 ------------ Run | Yrd Mat Min Exi Min Mat Fac Fac Fac Fac Used RIF Installer . | . . . . . . . . . . Robots Hacked . | . . . . . . . . . . Non-combat . | . . . . . . . . . . Combat . | . . . . . . . . . . Robot Hacks Applied . | . . . . . . . . . . Relay Couplers Released . | . . . . . . . . . . Fabnet Peak Effective % . | . . . . . . . . . . Robots Rewired . | . . . . . . . . . . Allies Hacked . | . . . . . . . . . . Hacks Repelled . | . . . . . . . . . . Allies | -11 -10 -10 -10 -9 -8 -7 -6 -5 -4 -------- Run | Yrd Mat Min Exi Min Mat Fac Fac Fac Fac Total Allies 4 | . . . . . 4 . . . . Largest Group 2 | . . . . . 2 . . . . Highest-Rated Group 32 | . . . . . 32 . . . . Highest-Rated Ally 16 | . . . . . 16 . . . . Total Orders . | . . . . . . . . . . Ally Attacks 10 | . . . . . 10 . . . . Total Damage 128 | . . . . . 128 . . . . Kills 2 | . . . . . 2 . . . . Allies Corrupted . | . . . . . . . . . . Allies Melted . | . . . . . . . . . . Field Lobotomies 4 | . . . . . 4 . . . . Intel | -11 -10 -10 -10 -9 -8 -7 -6 -5 -4 ------- Run | Yrd Mat Min Exi Min Mat Fac Fac Fac Fac Active Infowar (turns) 3127 | 42 73 32 887 102 488 74 51 461 917 Optics 1419 | . . . . . . . 41 461 917 Sensors 930 | . . . . . 488 74 51 317 . Traps 902 | . . . . . 428 74 10 390 . Seismic 1136 | 42 73 32 887 102 . . . . . Machine Analysis 1361 | . . . . . . . 50 461 850 Jamming 992 | . . . . . . . . 79 913 ECM 79 | . . . . . . . . 8 71 Robot Analysis Total . | . . . . . . . . . . Derelict Logs Recovered 1 | . . . . 1 . . . . . Drone Launches . | . . . . . . . . . . Drone Recoveries . | . . . . . . . . . . Exploration | -11 -10 -10 -10 -9 -8 -7 -6 -5 -4 ------------- Run | Yrd Mat Min Exi Min Mat Fac Fac Fac Fac Turns Passed 3562 | 115 73 32 904 386 513 74 51 461 953 Spaces Moved 4179 | 76 43 21 558 238 766 234 139 625 1479 Core 59 | 4 . . . . . . . . 55 Treads 1028 | 39 43 21 558 238 129 . . . . Legs . | . . . . . . . . . . Wheels 33 | 33 . . . . . . . . . Hover 1999 | . . . . . . . . 575 1424 Flight 1060 | . . . . . 637 234 139 50 . Fastest Speed 29 | 50 160 160 160 160 34 29 29 29 48 Average Speed 77 | 119 160 160 160 160 55 29 29 65 55 Slowest Speed 360 | 160 160 160 160 160 360 29 29 106 110 Overloaded Moves . | . . . . . . . . . . Propulsion Burnouts . | . . . . . . . . . . Robots Hopped 1 | . . . . . 1 . . . . Potential Cave-ins . | . . . . . . . . . . Cave-ins Triggered . | . . . . . . . . . . Exploration Rate (%) 23 | 4 10 12 90 40 38 5 4 13 20 Regions Visited 9 Branch Regions 3 Pre-discovered Areas . | . . . . . . . . . . Known Exits Taken 3 | . . . . . 1 1 1 . . Unknown Exits Taken 6 | 1 1 1 1 1 . . . 1 . Scrap Searched 1 | . . . . 1 . . . . . Spaces Dug . | . . . . . . . . . . Terrain Destroyed . | . . . . . . . . . . Melee . | . . . . . . . . . . Projectile . | . . . . . . . . . . AOE . | . . . . . . . . . . Terrain Rammed . | . . . . . . . . . . Walls Destroyed . | . . . . . . . . . . Machines Disabled . | . . . . . . . . . . Actions | -11 -10 -10 -10 -9 -8 -7 -6 -5 -4 --------- Run | Yrd Mat Min Exi Min Mat Fac Fac Fac Fac Total 4481 | 97 47 20 570 245 841 240 149 672 1600 Wait 87 | . . . . . 11 . . 6 70 Move 4168 | 75 42 20 557 237 763 233 138 624 1479 Hop 1 | . . . . . 1 . . . . Pick Up 55 | 7 5 . 3 3 13 3 2 10 9 Fast Attach 28 | 6 . . 3 . 7 . . 7 5 Attach 34 | 2 . . . 1 11 2 2 10 6 Detach 15 | 1 . . . . 10 . 1 2 1 Swap 13 | 2 . . 2 . 2 . 3 4 . Drop 41 | 3 . . 5 4 14 2 3 7 3 Fire 22 | 1 . . . . 8 . . 2 11 Melee 1 | . . . . . 1 . . . . Ram 11 | . . . . . . . . . 11 Kick . | . . . . . . . . . . Crush . | . . . . . . . . . . Escape Stasis 5 | . . . . . . . . . 5 Rewire . | . . . . . . . . . . Trap . | . . . . . . . . . . Miscellaneous . | . . . . . . . . . . Route ------- -11/Scrapyard -10/Materials -10/Mines -10/Exiles -9/Mines -8/Materials (discovered 2 exits: *Fac x2) -7/Factory -6/Factory -5/Factory -4/Factory History --------- Turn | Location | Event 3 | -11/Scrapyard | Discovered new exit (range 15) 116 | -11/Scrapyard | Entered Materials 139 | -10/Materials | Discovered new exit (range 16) 189 | -10/Materials | Entered Mines 215 | -10/Mines | Deemed a non-threat by the Exiles lab entrance 215 | -10/Mines | Discovered new exit (range 5) 221 | -10/Mines | Entered Exiles 261 | -10/Exiles | Met 8R-AWN 289 | -10/Exiles | Met EX-HEX 307 | -10/Exiles | Build established: Mutant 353 | -10/Exiles | Met EX-DEC 403 | -10/Exiles | Visited The Gauntlet 742 | -10/Exiles | Discovered new exit (range 14) 842 | -10/Exiles | Met EX-BIN 884 | -10/Exiles | Aligned with FarCom system 886 | -10/Exiles | Given EX-Vault access code 945 | -10/Exiles | Opened EX-Vault 953 | -10/Exiles | Found Prototype Storage 953 | -10/Exiles | Identified Superbattery 975 | -10/Exiles | Found Field Lobotomy Kit 1010 | -10/Exiles | Warned to stay clear of 0b10 Research branches 1125 | -10/Exiles | Left Exiles lab with Field Lobotomy Kit 1125 | -10/Exiles | Entered Mines 1163 | -9/Mines | Met a Derelict bent on vengeance 1221 | -9/Mines | Found a Scrap Suit stashed away for nefarious purposes 1226 | -9/Mines | Found Scrap Suit 1501 | -9/Mines | Discovered new exit (range 6) 1511 | -9/Mines | Entered Materials 1511 | -8/Materials | Evolved 4 slots: Propulsion x1, Utility x2, Weapon x1 1512 | -8/Materials | Identified exit to Factory 1574 | -8/Materials | Assimilated Y-45 Defender with FLK Orb 1733 | -8/Materials | Assimilated S-10 Pest with FLK Orb 1829 | -8/Materials | Assimilated G-47 Trooper with FLK Orb 1854 | -8/Materials | Assimilated G-47 Trooper with FLK Orb 1979 | -8/Materials | Discovered exit to Factory (range 15) 2024 | -8/Materials | Entered Factory 2024 | -7/Factory | Evolved 2 slots: Power x1, Propulsion x1 2065 | -7/Factory | Build established: Scavenger-Scout 2097 | -7/Factory | Discovered new exit (range 6) 2098 | -7/Factory | Identified exit to Factory 2098 | -7/Factory | Entered another Factory area 2098 | -6/Factory | Evolved 2 slots: Utility x2 2124 | -6/Factory | Discovered new exit (range 11) 2144 | -6/Factory | Identified exit to Factory 2149 | -6/Factory | Entered another Factory area 2149 | -5/Factory | Evolved 2 slots: Utility x2 2527 | -5/Factory | Lost 3 parts (1p1u1w) 2603 | -5/Factory | Lost 4 parts (1p3u) 2608 | -5/Factory | Discovered new exit (range 3) 2610 | -5/Factory | Entered another Factory area 2610 | -4/Factory | Evolved 2 slots: Power x1, Utility x1 2836 | -4/Factory | Build established: Infiltrator-Scout 3442 | -4/Factory | Spotted B-86 Titan 3503 | -4/Factory | Lost 5 parts (2p1n1u1w) 3527 | -4/Factory | Released all parts (5) 3528 | -4/Factory | System corruption reached 10% 3550 | -4/Factory | Core integrity fell below 50% 3556 | -4/Factory | Lost 7 parts (1p2n4u) 3557 | -4/Factory | Core integrity fell below 20% 3563 | -4/Factory | Destroyed by B-86 Titan with Matter Neutralizer Last Messages --------------- 03523_ Imp. Transmission Jammer destroyed. 03525_ Machine Analyzer destroyed. 03525_ Neutrino Core destroyed. 03527_ Released Imp. Target Analyzer. 03527_ Released Com. Battery. 03527_ Released Enh. Optical Array. 03527_ Released Imp. Component Analysis Suite. 03527_ Released Gyrokinetic Inverter. 03529_ System corrupted: Substantial component data lost. 03530_ P-70 Sage resets G-67 Veteran, system corruption cleaned. 03543_ Slammed into S-27 Virus. 03544_ System corrupted: Matter fused (-7). 03544_ Slammed into S-27 Virus. 03548_ Slammed into P-70 Sage. 03549_ Slammed into G-67 Veteran. 03551_ Slammed into G-73 Enforcer. 03552_ Critical hit (Burn: +50). 03558_ S-27 Virus destroyed. 03559_ Slug penetrates Wall. 03561_ P-70 Sage resets G-67 Veteran, system corruption cleaned. Map ----- +----------------------------------------------------+ | ######### #?????????# #??????????????????????? | | # #?????????# +??????????????????????? | | """ # #?"""?"""?# #??????????????????????? | | """ # #?"""?"""?#% #??????????????????????? | | """ # #?"""?"""?# #??????????????????????? | | + #?????????# #??????????????????????? | | !! # #?????????# #??????????????????????? | | |! # #?????????# #??????????????????????? | | |! # #?????????# #??????????????????????? | | # #?????????# +??????????????????????? | | ######+## ########### #??????????????????????? | | ?????# k#??????????????????????? | | ?????# ########### #??????????????????????? | | ###### # # #?""G""????????????????? | | + # #??"?"?????????????????? | | ########### # # " " #?????????????? | | ######????# + + #?????????????? | | #????# #w # """ #?????????????? | | """ #????# # # ??""" #???????? ??? | | """ #????# = # #? ?""" ??# ???? ? | | """ #????# # #? ???????#! | | """ #????########### #??#???????# """"""" | | #??????????????# #??????????# """"""" | | #??????????????# #??????????# """"""" | | #??????????????#kBB #??????????# """"""" | | #??????????????# BB @#####??????# | | #+################### ;;#"##############"##### | | ww s gg %%%% | | sg=% ### | | u s p * #?? | | !! s #?? | | = #?? | | ?????##########+#############+##################?? | | ???"""???# #??# #??????????????? | | ???"Y"???#! """ #??# """" "#??????????????? | | ?????????# ""R" #??# """" "#??????????????? | | ?????????# "" " #??# """" "#??????????????? | | ?????????# #??# """" T#??????????????? | | ?????????# #??# """" "#??????????????? | | ?????????# """""" #??# """" "#??????????????? | | ?????????# """""" #??# """" "#??????????????? | | ?????????# """""" #??# ? #??????????????? | | ?????????# """""" #????????####??????????????? | | ?????????# #??????????????????????????? | | ?????????# ! #??????????????????????????? | | ?????????#########??###??????????????????????????? | | ?????????????????????????????????????????????????? | | ?????????????????????????????????????????????????? | | ?????????????????????????????????????????????????? | | ?????????????????????????????????????????????????? | +----------------------------------------------------+ Best States ------------- Heat Dissipation 57 Energy Generation 34 Energy Capacity 900 Matter Stores 300 Matter Capacity 300 Sight Range 22 Robot Scan Range 15 Terrain Scan Density 10 ECM Strength 2 Jamming Range 14 Resistance: TH 25 Resistance: EM 25 Point Defense Rating 80 Evasion (%) 74 Target Analysis 6 Recoil Reduction 2 Defensive Hacking 14 Item Schematics ----------------- None Robot Schematics ------------------ None Fabricated ------------ Nothing Repaired ---------- Nothing Alien Tech Used ----------------- None Achievements -------------- None Challenges ------------ None Game ------ Seed BackupShiftShredder Manual? 0 Play Time 01:20:37 Cumulative 62.1 hours Start 2025.09.02 @ 23:09:32 End 2025.09.03 @ 18:36:02 Sessions 9 Manual Loads 0 Difficulty Rogue Special Mode None Game No. 80 Rogue 80 Adventurer 0 Explorer 0 Win Type - Total 0 Types 0/0/0/0/0/0/0/0/0/0 Lore% 16 Gallery% 35 Achievement% 29 Wizard Run 0 Options --------- Layout 0 ASCII 0 Keyboard 0 Movement Mouse Keybinds 0 Fullscreen 1 Font 24/Smallcaps Map View 76x50 Zoom Use 0% Tactical HUD 1 Map Filters NONE Filters NONE Steam 1 RUN: f4b24a67-5652-4f44-95e9-5edd600e4bc5